Workbook

Sheet ORÇAMENTO
A1: <---- NUMERAR SERVIÇOS PARA CPU | C1: Ministério do Desenvolvimento Regional
C2: Companhia de Desenvolvimento dos Vales do São Francisco e do Parnaíba
C3: 1ª Superintendência Regional
B5: OBRA: | C5: PAVIMENTAÇÃO EM BLOQUETE - RUAS DIVERSAS - CORONEL MURTA/ MG
B6: DATA: | C6: SETEMBRO/2023 | G6: BDI Serviços: | I6: ='BDI SERV'!D30/100 -> 0.2149
B7: PRAZO DE EXECUÇÃO: 240 DIAS
B8: ITEM | C8: DISCRIMINAÇÃO | D8: REFER. | E8: UNID. | F8: QUANT. | G8: P. UNITÁRIO | H8: P.UNIT.C/ BDI | I8: P. TOTAL
A9: A | B9: 1 | C9: SERVIÇOS PRELIMINARES | I9: =SUM(I10:I14) -> 107819.41 | M9: .
A10: 1 | B10: 1.1 | C10: MOBILIZAÇÃO E DESMOBILIZAÇÃO | D10: CPU.1 | E10: GL | F10: 1 | G10: =VLOOKUP(A10,CPU!$A$1:$N$4523,9) -> 4047.6 | H10: =VLOOKUP(A10,CPU!$A$1:$N$4523,10) -> 4917.42924 | I10: =ROUND(F10*H10,2) -> 4917.43
A11: 2 | B11: 1.2 | C11: ADMINISTRAÇÃO LOCAL | D11: CPU.2 | E11: GL | F11: 1 | G11: =VLOOKUP(A11,CPU!$A$1:$N$4523,9) -> 74115.04 | H11: =VLOOKUP(A11,CPU!$A$1:$N$4523,10) -> 90042.3621 | I11: =ROUND(F11*H11,2) -> 90042.36
A12: 3 | B12: 1.3 | C12: CANTEIRO DE OBRAS | D12: CPU.3 | E12: GL | F12: 1 | G12: =VLOOKUP(A12,CPU!$A$1:$N$4523,9) -> 7800 | H12: =VLOOKUP(A12,CPU!$A$1:$N$4523,10) -> 9476.22 | I12: =ROUND(F12*H12,2) -> 9476.22
A13: 4 | B13: 1.4 | C13: PLACA DE OBRA EM CHAPA DE AÇO GALVANIZADO | D13: 103689a | E13: M2 | F13: 4.5 | G13: =VLOOKUP(A13,CPU!$A$1:$N$4523,9) -> 307.76 | H13: =VLOOKUP(A13,CPU!$A$1:$N$4523,10) -> 373.897624 | I13: =ROUND(F13*H13,2) -> 1682.54 | L13: .
A14: 5 | B14: 1.5 | C14: LOCAÇÃO DE PAVIMENTAÇÃO | D14: 99064 | E14: M | F14: 2000 | G14: =VLOOKUP(A14,CPU!$A$1:$N$4523,9) -> 0.7 | H14: =VLOOKUP(A14,CPU!$A$1:$N$4523,10) -> 0.85043 | I14: =ROUND(F14*H14,2) -> 1700.86
A15: B | B15: 2 | C15: PAVIMENTAÇÃO | I15: =SUM(I16:I21) -> 1104395.32
A16: 6 | B16: 2.1 | C16: ESCAVAÇÃO HORIZONTAL EM SOLO DE 1A CATEGORIA COM TRATOR DE ESTEIRAS | D16: 101116 | E16: M3 | F16: 6600 | G16: =VLOOKUP(A16,CPU!$A$1:$N$4523,9) -> 2.2 | H16: =VLOOKUP(A16,CPU!$A$1:$N$4523,10) -> 2.67278 | I16: =ROUND(F16*H16,2) -> 17640.35
A17: 7 | B17: 2.2 | C17: CARGA, MANOBRA E DESCARGA DE SOLOS E MATERIAIS GRANULARES EM CAMINHÃO BASCULANTE - CARGA COM PÁ CARREGADEIRA E DESCARGA LIVRE | D17: 100976 | E17: M3 | F17: 6600 | G17: =VLOOKUP(A17,CPU!$A$1:$N$4523,9) -> 8.71 | H17: =VLOOKUP(A17,CPU!$A$1:$N$4523,10) -> 10.581779 | I17: =ROUND(F17*H17,2) -> 69839.74
A18: 8 | B18: 2.3 | C18: REGULARIZAÇÃO E COMPACTAÇÃO DE SUBLEITO | D18: 100576 | E18: M2 | F18: 14600 | G18: =VLOOKUP(A18,CPU!$A$1:$N$4523,9) -> 2.57 | H18: =VLOOKUP(A18,CPU!$A$1:$N$4523,10) -> 3.122293 | I18: =ROUND(F18*H18,2) -> 45585.48
A19: 9 | B19: 2.4 | C19: CASCALHO DE CAVA - EXCLUSIVE TRANSPORTE | D19: - | E19: M3 | F19: 2300 | G19: FORNECIDO PELA PREFEITURA | I19: -
A20: 10 | B20: 2.5 | C20: EXECUÇÃO E COMPACTAÇÃO DE BASE E OU SUB BASE PARA PAVIMENTAÇÃO EM CASCALHO - EXCLUSIVE SOLO, ESCAVAÇÃO, CARGA E TRANSPORTE. | D20: 96388a | E20: M3 | F20: 2300 | G20: =VLOOKUP(A20,CPU!$A$1:$N$4523,9) -> 9.55 | H20: =VLOOKUP(A20,CPU!$A$1:$N$4523,10) -> 11.6 | I20: =ROUND(F20*H20,2) -> 26680
A21: 11 | B21: 2.6 | C21: EXECUÇÃO DE PAVIMENTO EM PISO INTERTRAVADO, COM BLOCO SEXTAVADO DE CONCRETO DE 25 X 25 CM, ESPESSURA 8 CM | D21: 92394 | E21: M2 | F21: 12850 | G21: =VLOOKUP(A21,CPU!$A$1:$N$4523,9) -> 60.51 | H21: =VLOOKUP(A21,CPU!$A$1:$N$4523,10) -> 73.513599 | I21: 944649.75
A22: C | B22: 3 | C22: TRANSPORTE DE MATERIAIS | I22: =SUM(I23:I25) -> 164631.09
A23: 12 | B23: 3.1 | C23: TRANSPORTE COM CAMINHÃO BASCULANTE, EM VIA URBANA EM REVESTIMENTO PRIMÁRIO | D23: 95426 | E23: M3XKM | F23: 36500 | G23: =VLOOKUP(A23,CPU!$A$1:$N$4523,9) -> 1.24 | H23: =VLOOKUP(A23,CPU!$A$1:$N$4523,10) -> 1.506476 | I23: =ROUND(F23*H23,2) -> 54986.37
A24: 13 | B24: 3.2 | C24: TRANSPORTE COM CAMINHÃO BASCULANTE, EM VIA URBANA PAVIMENTADA | D24: 95427 | E24: M3XKM | F24: 6999.99825 | G24: =VLOOKUP(A24,CPU!$A$1:$N$4523,9) -> 0.73 | H24: =VLOOKUP(A24,CPU!$A$1:$N$4523,10) -> 0.886877 | I24: =ROUND(F24*H24,2) -> 6208.14
A25: 14 | B25: 3.3 | C25: TRANSPORTE COM CAMINHÃO CARROCERIA, EM VIA URBANA PAVIMENTADA | D25: 100948 | E25: TXKM | F25: 197999.9966 | G25: =VLOOKUP(A25,CPU!$A$1:$N$4523,9) -> 0.43 | H25: =VLOOKUP(A25,CPU!$A$1:$N$4523,10) -> 0.522407 | I25: =ROUND(F25*H25,2) -> 103436.58
A26: D | B26: 4 | C26: OBRAS COMPLEMENTARES | I26: =SUM(I27:I31) -> 434901.32
A27: 15 | B27: 4.1 | C27: ASSENTAMENTO DE GUIA (MEIO-FIO) EM TRECHO RETO, CONFECCIONADA EM CONCRETO PRÉ-FABRICADO, DIMENSÕES 100X15X13X30 CM (COMPRIMENTO X BASE INFERIOR X BASE SUPERIOR X ALTURA) | D27: 94273a | E27: M | F27: 4200 | G27: =VLOOKUP(A27,CPU!$A$1:$N$4523,9) -> 45.31 | H27: =VLOOKUP(A27,CPU!$A$1:$N$4523,10) -> 55.047119 | I27: =ROUND(F27*H27,2) -> 231197.9
A28: 16 | B28: 4.2 | C28: EXECUÇÃO DE SARJETA DE CONCRETO USINADO, MOLDADA IN LOCO EM TRECHO RETO, 30 CM BASE X 5 CM ALTURA | D28: 94287a | E28: M | F28: 3950 | G28: =VLOOKUP(A28,CPU!$A$1:$N$4523,9) -> 34.31 | H28: =VLOOKUP(A28,CPU!$A$1:$N$4523,10) -> 41.683219 | I28: =ROUND(F28*H28,2) -> 164648.72
A29: 17 | B29: 4.3 | C29: FORNECIMENTO E INSTALAÇÃO DE PLACA DE SINALIZAÇÃO VIÁRIA - REGULAMENTAÇÃO (PARE) | D29: CPU.4 | E29: UN. | F29: 30 | G29: =VLOOKUP(A29,CPU!$A$1:$N$4523,9) -> 482.58 | H29: =VLOOKUP(A29,CPU!$A$1:$N$4523,10) -> 586.29 | I29: =ROUND(F29*H29,2) -> 17588.7
A30: 18 | B30: 4.4 | C30: FORNECIMENTO E INSTALAÇÃO DE PLACA DE AÇO PARA IDENTIFICACAO DE RUA, *45 CM X 20* CM, INCLUSIVE SUPORTE EM TUBO DE AÇO GALVANIZADO (02 PLACAS POR SUPORTE) | D30: CPU.5 | E30: UN. | F30: 36 | G30: =VLOOKUP(A30,CPU!$A$1:$N$4523,9) -> 375.29 | H30: =VLOOKUP(A30,CPU!$A$1:$N$4523,10) -> 455.94 | I30: 16413.84
A31: 19 | B31: 4.5 | C31: FORNECIMENTO E INSTALAÇÃO DE PLACA DE SINALIZAÇÃO VIÁRIA - REGULAMENTAÇÃO (FAIXA ELEVADA E E OUTROS) - CONFORME PROJETO | D31: CPU.6 | E31: UN. | F31: 10 | G31: =VLOOKUP(A31,CPU!$A$1:$N$4523,9) -> 415.85 | H31: =VLOOKUP(A31,CPU!$A$1:$N$4523,10) -> 505.216165 | I31: 5052.16
B32: TOTAL GERAL DA OBRA COM BDI | I32: =SUM(I9,I15,I22,I26) -> 1811747.14

Sheet CPU
A1: 1 | B1: CODEVASF | E1: COMPOSIÇÃO DE PREÇO UNITÁRIO | I1: =H10 -> 4047.6 | J1: =H12 -> 4917.42924 | K1: BDI CALCULADO: | M1: =ORÇAMENTO!I6 -> 0.2149
B2: OBRA: | C2: =ORÇAMENTO!C5 -> PAVIMENTAÇÃO EM BLOQUETE - RUAS DIVERSAS - CORONEL MURTA/ MG | G2: DATA: | H2: =ORÇAMENTO!C6 -> SETEMBRO/2023
B3: SERVIÇO: | C3: =VLOOKUP(A1,ORÇAMENTO!A10:I28,3) -> MOBILIZAÇÃO E DESMOBILIZAÇÃO | E3: Referência: | F3: =VLOOKUP(A1,ORÇAMENTO!A10:I28,4) -> CPU.1 | G3: UNIDADE: | H3: =VLOOKUP(A1,ORÇAMENTO!A10:I28,5) -> GL
B5: TIPO ITEM | C5: CODIGO ITEM | D5: DESCRIÇÃO ITEM | E5: UNIDADE ITEM | F5: COEFICIENTE | G5: PRECO UNITARIO | H5: CUSTO TOTAL
B6: COMPOSICAO | C6: 5824 | D6: CAMINHÃO TOCO, PBT 16.000 KG, CARGA ÚTIL MÁX. 10.685 KG, DIST. ENTRE EIXOS 4,8 M, POTÊNCIA 189 CV, INCLUSIVE CARROCERIA FIXA ABERTA DE MADEIRA P/ TRANSPORTE GERAL DE CARGA SECA | E6: CHP | F6: 16 | G6: 202,74 | H6: =ROUNDDOWN(F6*G6,2) -> 3243.84
B7: COMPOSICAO | C7: 5826 | D7: CAMINHÃO TOCO, PBT 16.000 KG, CARGA ÚTIL MÁX. 10.685 KG, DIST. ENTRE EIXOS 4,8 M, POTÊNCIA 189 CV, INCLUSIVE CARROCERIA FIXA ABERTA DE MADEIRA P/ TRANSPORTE GERAL DE CARGA SECA | E7: CHI | F7: 8 | G7: 60,95 | H7: =ROUNDDOWN(F7*G7,2) -> 487.6
B8: COMPOSIÇÃO | C8: 88316 | D8: SERVENTE COM ENCARGOS COMPLEMENTARES | E8: H | F8: 16 | G8: 19,76 | H8: 316.16
B9: PRODUÇÃO DA EQUIPE | E9: 1 | F9: CUSTO | H9: =SUM(H6:H8) -> 4047.6
B10: TOTAL | H10: =H9/E9 -> 4047.6 | I10: OK
B11: BDI % | H11: =1+$M$1 -> 1.2149
B12: TOTAL DO SERVIÇO - R$ | H12: =H10*H11 -> 4917.42924
A14: =A1+1 -> 2 | B14: CODEVASF | E14: COMPOSIÇÃO DE PREÇO UNITÁRIO | I14: =H27 -> 74115.04 | J14: =H29 -> 90042.3621
B15: OBRA: | C15: =$C$2 -> PAVIMENTAÇÃO EM BLOQUETE - RUAS DIVERSAS - CORONEL MURTA/ MG | G15: DATA: | H15: =$H$2 -> SETEMBRO/2023
B16: SERVIÇO: | C16: =VLOOKUP(A14,ORÇAMENTO!$A$10:$I$28,3) -> ADMINISTRAÇÃO LOCAL | E16: SINAPI | F16: =VLOOKUP(A14,ORÇAMENTO!A10:I28,4,0) -> CPU.2 | G16: UNIDADE: | H16: =VLOOKUP(A14,ORÇAMENTO!$A$10:$I$28,5) -> GL
B18: TIPO ITEM | C18: CODIGO ITEM | D18: DESCRIÇÃO ITEM | E18: UNIDADE ITEM | F18: COEFICIENTE | G18: PRECO UNITARIO | H18: CUSTO TOTAL
B19: INSUMO | C19: 14250 | D19: ENERGIA ELÉTRICA | E19: kwh | F19: 80 | G19: 0,94 | H19: =ROUNDDOWN(F19*G19,2) -> 75.2
B20: INSUMO | C20: 44480 | D20: TARIFA "A" ENTRE 0 E 20 M³ - FORNECIMENTO D'ÁGUA | E20: m³ | F20: 6 | G20: 17,78 | H20: =ROUNDDOWN(F20*G20,2) -> 106.68
B21: COTAÇÃO | C21: MERC. | D21: TELEFONE (PLANO CONTROLE) | E21: UNID | F21: 2 | G21: 60 | H21: 120
B22: COMPOSICAO | C22: 90777 | D22: Engenheiro Civil Júnior com encargos complementares | E22: H | F22: 30 | G22: 114,12 | H22: 3423.6
B23: COMPOSICAO | C23: 90776 | D23: Encarregado Geral com encargos complementares | E23: H | F23: 60 | G23: 57,73 | H23: 3463.8
B24: COMPOSICAO | C24: 88321 | D24: Tecnico de Laboratório com encargos complementares | E24: H | F24: 30 | G24: 45,45 | H24: 1363.5
B25: COMPOSICAO | C25: 90772 | D25: Auxiliar de escritório com encargos complementares | E25: H | F25: 30 | G25: 23.72 | H25: 711.6
B26: PRODUÇÃO DA EQUIPE | E26: =1/8 -> 0.125 | F26: CUSTO | H26: =SUM(H19:H25) -> 9264.38
B27: TOTAL | H27: =H26/E26 -> 74115.04 | I27: OK
B28: BDI % | H28: =1+$M$1 -> 1.2149
B29: TOTAL DO SERVIÇO - R$ | H29: =H27*H28 -> 90042.3621
A31: =A14+1 -> 3 | B31: CODEVASF | E31: COMPOSIÇÃO DE PREÇO UNITÁRIO | I31: =H38 -> 7800 | J31: =H40 -> 9476.22
B32: OBRA: | C32: =$C$2 -> PAVIMENTAÇÃO EM BLOQUETE - RUAS DIVERSAS - CORONEL MURTA/ MG | G32: DATA: | H32: =$H$2 -> SETEMBRO/2023
B33: SERVIÇO: | C33: =VLOOKUP(A31,ORÇAMENTO!$A$10:$I$28,3) -> CANTEIRO DE OBRAS | E33: SINAPI | F33: =VLOOKUP(A31,ORÇAMENTO!$A$10:$I$28,4) -> CPU.3 | G33: UNIDADE: | H33: =VLOOKUP(A31,ORÇAMENTO!$A$10:$I$28,5) -> GL
B35: TIPO ITEM | C35: CODIGO ITEM | D35: DESCRIÇÃO ITEM | E35: UNIDADE ITEM | F35: COEFICIENTE | G35: PRECO UNITARIO | H35: CUSTO TOTAL
B36: COTAÇÃO | C36: 10775 | D36: ALUGUEL DE IMÓVEL OU CONTEINER QUE ATENDA AOS REQUISITOS MÍNIMOS PARA INSTALAÇÃO DO CANTEIRO DE OBRAS | E36: MÊS | F36: 8 | G36: 975 | H36: =ROUNDDOWN(F36*G36,2) -> 7800
B37: PRODUÇÃO DA EQUIPE | E37: 1 | F37: CUSTO | H37: =SUM(H36:H36) -> 7800
B38: TOTAL | H38: =H37/E37 -> 7800 | I38: OK
B39: BDI % | H39: =1+$M$1 -> 1.2149
B40: TOTAL DO SERVIÇO - R$ | H40: =H38*H39 -> 9476.22
A42: =A31+1 -> 4 | B42: CODEVASF | E42: COMPOSIÇÃO DE PREÇO UNITÁRIO | I42: =H55 -> 307.76 | J42: =H57 -> 373.897624
B43: OBRA: | C43: =$C$2 -> PAVIMENTAÇÃO EM BLOQUETE - RUAS DIVERSAS - CORONEL MURTA/ MG | G43: DATA: | H43: =$H$2 -> SETEMBRO/2023
B44: SERVIÇO: | C44: =VLOOKUP(A42,ORÇAMENTO!$A$10:$I$28,3) -> PLACA DE OBRA EM CHAPA DE AÇO GALVANIZADO | E44: SINAPI | F44: =VLOOKUP(A42,ORÇAMENTO!$A$10:$I$28,4) -> 103689a | G44: UNIDADE: | H44: =VLOOKUP(A42,ORÇAMENTO!$A$10:$I$28,5) -> M2
B46: TIPO ITEM | C46: CODIGO ITEM | D46: DESCRIÇÃO ITEM | E46: UNIDADE ITEM | F46: COEFICIENTE | G46: PRECO UNITARIO | H46: CUSTO TOTAL
B47: INSUMO | C47: 4509 | D47: SARRAFO *2,5 X 10* CM EM PINUS, MISTA OU EQUIVALENTE DA REGIAO - BRUTA | E47: M | F47: 3,2083000 | G47: 4,41 | H47: =ROUNDDOWN(F47*G47,2) -> 14.14
B48: INSUMO | C48: 4813 | D48: PLACA DE OBRA (PARA CONSTRUCAO CIVIL) EM CHAPA GALVANIZADA *N. 22*, ADESIVADA, DE *2,4 X 1,2* M (SEM POSTES PARA FIXACAO) | E48: M2 | F48: 1,0000000 | G48: 250,00 | H48: =ROUNDDOWN(F48*G48,2) -> 250
B49: INSUMO | C49: 5065 | D49: PREGO DE ACO POLIDO COM CABECA 10 X 10 (7/8 X 17) | E49: KG | F49: 0,0113000 | G49: 36,57 | H49: 0.41
B50: INSUMO | C50: 5069 | D50: PREGO DE ACO POLIDO COM CABECA 17 X 27 (2 1/2 X 11) | E50: KG | F50: 0,0132000 | G50: 19,59 | H50: 0.25
B51: COMPOSICAO | C51: 88262 | D51: CARPINTEIRO DE FORMAS COM ENCARGOS COMPLEMENTARES | E51: H | F51: 0,3729000 | G51: 27,05 | H51: 10.08
B52: COMPOSICAO | C52: 88316 | D52: SERVENTE COM ENCARGOS COMPLEMENTARES | E52: H | F52: 1,1186000 | G52: 19,76 | H52: 22.1
B53: COMPOSICAO | C53: 4115 | D53: MADEIRA ROLICA TRATADA, D = 12 A 15 CM, H = 3,00 M, EM EUCALIPTO OU EQUIVALENTE | E53: M2 | F53: 0.5 | G53: 21,57 | H53: 10.78
B54: PRODUÇÃO DA EQUIPE | E54: 1 | F54: CUSTO | H54: =SUM(H47:H53) -> 307.76
B55: TOTAL | H55: =H54/E54 -> 307.76 | I55: OK
B56: BDI % | H56: =1+$M$1 -> 1.2149
B57: TOTAL DO SERVIÇO - R$ | H57: =H55*H56 -> 373.897624
A59: =A42+1 -> 5 | B59: CODEVASF | E59: COMPOSIÇÃO DE PREÇO UNITÁRIO | I59: =H66 -> 0.7 | J59: =H68 -> 0.85043
B60: OBRA: | C60: =$C$2 -> PAVIMENTAÇÃO EM BLOQUETE - RUAS DIVERSAS - CORONEL MURTA/ MG | G60: DATA: | H60: =$H$2 -> SETEMBRO/2023
B61: SERVIÇO: | C61: =VLOOKUP(A59,ORÇAMENTO!$A$10:$I$28,3) -> LOCAÇÃO DE PAVIMENTAÇÃO | E61: SINAPI | F61: =VLOOKUP(A59,ORÇAMENTO!$A$10:$I$28,4) -> 99064 | G61: UNIDADE: | H61: =VLOOKUP(A59,ORÇAMENTO!$A$10:$I$28,5) -> M
B63: TIPO ITEM | C63: CODIGO ITEM | D63: DESCRIÇÃO ITEM | E63: UNIDADE ITEM | F63: COEFICIENTE | G63: PRECO UNITARIO | H63: CUSTO TOTAL
B64: COMPOSICAO | C64: 99058 | D64: LOCAÇÃO DE PONTO PARA REFERÊNCIA TOPOGRÁFICA | E64: UN | F64: 0,0500000 | G64: 14.14 | H64: =ROUNDDOWN(F64*G64,2) -> 0.7
B65: PRODUÇÃO DA EQUIPE | E65: 1 | F65: CUSTO | H65: =SUM(H64:H64) -> 0.7
B66: TOTAL | H66: =H65/E65 -> 0.7 | I66: OK
B67: BDI % | H67: =1+$M$1 -> 1.2149
B68: TOTAL DO SERVIÇO - R$ | H68: =H66*H67 -> 0.85043
A70: =A59+1 -> 6 | B70: CODEVASF | E70: COMPOSIÇÃO DE PREÇO UNITÁRIO | I70: =H79 -> 2.2 | J70: =H81 -> 2.67278
B71: OBRA: | C71: =$C$2 -> PAVIMENTAÇÃO EM BLOQUETE - RUAS DIVERSAS - CORONEL MURTA/ MG | G71: DATA: | H71: =$H$2 -> SETEMBRO/2023
B72: SERVIÇO: | C72: =VLOOKUP(A70,ORÇAMENTO!$A$10:$I$28,3) -> ESCAVAÇÃO HORIZONTAL EM SOLO DE 1A CATEGORIA COM TRATOR DE ESTEIRAS | E72: SINAPI | F72: =VLOOKUP(A70,ORÇAMENTO!$A$10:$I$28,4) -> 101116 | G72: UNIDADE: | H72: =VLOOKUP(A70,ORÇAMENTO!$A$10:$I$28,5) -> M3
B74: TIPO ITEM | C74: CODIGO ITEM | D74: DESCRIÇÃO ITEM | E74: UNIDADE ITEM | F74: COEFICIENTE | G74: PRECO UNITARIO | H74: CUSTO TOTAL
B75: COMPOSICAO | C75: 5847 | D75: TRATOR DE ESTEIRAS, POTÊNCIA 170 HP, PESO OPERACIONAL 19 T, CAÇAMBA 5,2 M3 | E75: CHP | F75: 0,0048000 | G75: 253,93 | H75: =ROUNDDOWN(F75*G75,2) -> 1.21
B76: COMPOSICAO | C76: 5849 | D76: TRATOR DE ESTEIRAS, POTÊNCIA 170 HP, PESO OPERACIONAL 19 T, CAÇAMBA 5,2 M3 | E76: CHI | F76: 0,0082000 | G76: 90,40 | H76: 0.74
B77: COMPOSICAO | C77: 88316 | D77: SERVENTE COM ENCARGOS COMPLEMENTARES | E77: H | F77: 0,0131000 | G77: 19,76 | H77: 0.25
B78: PRODUÇÃO DA EQUIPE | E78: 1 | F78: CUSTO | H78: =SUM(H75:H77) -> 2.2
B79: TOTAL | H79: =H78/E78 -> 2.2 | I79: OK
B80: BDI % | H80: =1+$M$1 -> 1.2149
B81: TOTAL DO SERVIÇO - R$ | H81: =H79*H80 -> 2.67278
A83: 7 | B83: CODEVASF | E83: COMPOSIÇÃO DE PREÇO UNITÁRIO | I83: =H93 -> 8.71 | J83: =H95 -> 10.581779
B84: OBRA: | C84: =$C$2 -> PAVIMENTAÇÃO EM BLOQUETE - RUAS DIVERSAS - CORONEL MURTA/ MG | G84: DATA: | H84: =$H$2 -> SETEMBRO/2023
B85: SERVIÇO: | C85: =VLOOKUP(A83,ORÇAMENTO!$A$10:$I$28,3) -> CARGA, MANOBRA E DESCARGA DE SOLOS E MATERIAIS GRANULARES EM CAMINHÃO BASCULANTE - CARGA COM PÁ CARREGADEIRA E DESCARGA LIVRE | E85: SINAPI | F85: =VLOOKUP(A83,ORÇAMENTO!$A$10:$I$28,4) -> 100976 | G85: UNIDADE: | H85: =VLOOKUP(A83,ORÇAMENTO!$A$10:$I$28,5) -> M3
B87: TIPO ITEM | C87: CODIGO ITEM | D87: DESCRIÇÃO ITEM | E87: UNIDADE ITEM | F87: COEFICIENTE | G87: PRECO UNITARIO | H87: CUSTO TOTAL
B88: COMPOSICAO | C88: 5940 | D88: PÁ CARREGADEIRA SOBRE RODAS, POTÊNCIA LÍQUIDA 128 HP, CAPACIDADE DA CAÇAMBA 1,7 A 2,8 M3, PESO OPERACIONAL 11632 KG | E88: CHP | F88: 0,0083000 | G88: 217,72 | H88: =ROUNDDOWN(F88*G88,2) -> 1.8
B89: COMPOSICAO | C89: 5942 | D89: PÁ CARREGADEIRA SOBRE RODAS, POTÊNCIA LÍQUIDA 128 HP, CAPACIDADE DA CAÇAMBA 1,7 A 2,8 M3, PESO OPERACIONAL 11632 KG | E89: CHI | F89: 0,0074000 | G89: 95,85 | H89: 0.7
B90: COMPOSICAO | C90: 89883 | D90: CAMINHÃO BASCULANTE 18 M3, COM CAVALO MECÂNICO DE CAPACIDADE MÁXIMA DE TRAÇÃO COMBINADO DE 45000 KG, POTÊNCIA 330 CV, INCLUSIVE SEMIREBOQUE COM CAÇAMBA METÁLICA | E90: CHP | F90: 0,0153000 | G90: 348,45 | H90: 5.33
B91: COMPOSICAO | C91: 89884 | D91: CAMINHÃO BASCULANTE 18 M3, COM CAVALO MECÂNICO DE CAPACIDADE MÁXIMA DE TRAÇÃO COMBINADO DE 45000 KG, POTÊNCIA 330 CV, INCLUSIVE SEMIREBOQUE COM CAÇAMBA METÁLICA | E91: CHI | F91: 0,0095000 | G91: 93,65 | H91: 0.88
B92: PRODUÇÃO DA EQUIPE | E92: 1 | F92: CUSTO | H92: =SUM(H88:H91) -> 8.71
B93: TOTAL | H93: =H92/E92 -> 8.71 | I93: OK
B94: BDI % | H94: =1+$M$1 -> 1.2149
B95: TOTAL DO SERVIÇO - R$ | H95: =H93*H94 -> 10.581779
A97: 8 | B97: CODEVASF | E97: COMPOSIÇÃO DE PREÇO UNITÁRIO | I97: =H110 -> 2.57 | J97: =H112 -> 3.122293
B98: OBRA: | C98: =$C$2 -> PAVIMENTAÇÃO EM BLOQUETE - RUAS DIVERSAS - CORONEL MURTA/ MG | G98: DATA: | H98: =$H$2 -> SETEMBRO/2023
B99: SERVIÇO: | C99: =VLOOKUP(A97,ORÇAMENTO!$A$10:$I$28,3) -> REGULARIZAÇÃO E COMPACTAÇÃO DE SUBLEITO | E99: SINAPI | F99: =VLOOKUP(A97,ORÇAMENTO!$A$10:$I$28,4) -> 100576 | G99: UNIDADE: | H99: =VLOOKUP(A97,ORÇAMENTO!$A$10:$I$28,5) -> M2
B101: TIPO ITEM | C101: CODIGO ITEM | D101: DESCRIÇÃO ITEM | E101: UNIDADE ITEM | F101: COEFICIENTE | G101: PRECO UNITARIO | H101: CUSTO TOTAL
B102: COMPOSICAO | C102: 5901 | D102: CAMINHÃO PIPA 10.000 L TRUCADO, PESO BRUTO TOTAL 23.000 KG, CARGA ÚTIL MÁXIMA 15.935 KG, DISTÂNCIA ENTRE EIXOS 4,8 M, POTÊNCIA 230 CV, INCLUSIVE TANQUE DE AÇO PARA TRANSPORTE DE ÁGUA | E102: CHP | F102: 0,0010000 | G102: 294,94 | H102: =ROUNDDOWN(F102*G102,2) -> 0.29
B103: COMPOSICAO | C103: 5903 | D103: CAMINHÃO PIPA 10.000 L TRUCADO, PESO BRUTO TOTAL 23.000 KG, CARGA ÚTIL MÁXIMA 15.935 KG, DISTÂNCIA ENTRE EIXOS 4,8 M, POTÊNCIA 230 CV, INCLUSIVE TANQUE DE AÇO PARA TRANSPORTE DE ÁGUA | E103: CHI | F103: 0,0070000 | G103: 72,55 | H103: 0.5
B104: COMPOSICAO | C104: 5932 | D104: MOTONIVELADORA POTÊNCIA BÁSICA LÍQUIDA (PRIMEIRA MARCHA) 125 HP, PESO BRUTO 13032 KG, LARGURA DA LÂMINA DE 3,7 M | E104: CHP | F104: 0,0001000 | G104: 262,71 | H104: 0.02
B105: COMPOSICAO | C105: 5934 | D105: MOTONIVELADORA POTÊNCIA BÁSICA LÍQUIDA (PRIMEIRA MARCHA) 125 HP, PESO BRUTO 13032 KG, LARGURA DA LÂMINA DE 3,7 M | E105: CHI | F105: 0,0080000 | G105: 109,40 | H105: 0.87
B106: COMPOSICAO | C106: 73436 | D106: ROLO COMPACTADOR VIBRATÓRIO PÉ DE CARNEIRO PARA SOLOS, POTÊNCIA 80 HP, PESO OPERACIONAL SEM/COM LASTRO 7,4 / 8,8 T, LARGURA DE TRABALHO 1,68 M | E106: CHP | F106: 0,0020000 | G106: 163,19 | H106: 0.32
B107: COMPOSICAO | C107: 88316 | D107: SERVENTE COM ENCARGOS COMPLEMENTARES | E107: H | F107: 0,0080000 | G107: 19,76 | H107: 0.15
B108: COMPOSICAO | C108: 93244 | D108: ROLO COMPACTADOR VIBRATÓRIO PÉ DE CARNEIRO PARA SOLOS, POTÊNCIA 80 HP, PESO OPERACIONAL SEM/COM LASTRO 7,4 / 8,8 T, LARGURA DE TRABALHO 1,68 M | E108: CHI | F108: 0,0060000 | G108: 71,18 | H108: 0.42
B109: PRODUÇÃO DA EQUIPE | E109: 1 | F109: CUSTO | H109: =SUM(H102:H108) -> 2.57
B110: TOTAL | H110: =H109/E109 -> 2.57 | I110: OK
B111: BDI % | H111: =1+$M$1 -> 1.2149
B112: TOTAL DO SERVIÇO - R$ | H112: =H110*H111 -> 3.122293
A114: 10 | B114: CODEVASF | E114: COMPOSIÇÃO DE PREÇO UNITÁRIO | I114: =H127 -> 9.55 | J114: =H129 -> 11.6
B115: OBRA: | C115: =$C$2 -> PAVIMENTAÇÃO EM BLOQUETE - RUAS DIVERSAS - CORONEL MURTA/ MG | G115: DATA: | H115: =$H$2 -> SETEMBRO/2023
B116: SERVIÇO: | C116: =VLOOKUP(A114,ORÇAMENTO!$A$10:$I$28,3) -> EXECUÇÃO E COMPACTAÇÃO DE BASE E OU SUB BASE PARA PAVIMENTAÇÃO EM CASCALHO - EXCLUSIVE SOLO, ESCAVAÇÃO, CARGA E TRANSPORTE. | E116: SINAPI | F116: =VLOOKUP(A114,ORÇAMENTO!$A$10:$I$28,4) -> 96388a | G116: UNIDADE: | H116: =VLOOKUP(A114,ORÇAMENTO!$A$10:$I$28,5) -> M3
B118: TIPO ITEM | C118: CODIGO ITEM | D118: DESCRIÇÃO ITEM | E118: UNIDADE ITEM | F118: COEFICIENTE | G118: PRECO UNITARIO | H118: CUSTO TOTAL
B119: COMPOSICAO | C119: 73436 | D119: ROLO COMPACTADOR VIBRATÓRIO PÉ DE CARNEIRO PARA SOLOS, POTÊNCIA 80 HP, PESO OPERACIONAL SEM/COM LASTRO 7,4 / 8,8 T, LARGURA DE TRABALHO 1,68 M | E119: CHP | F119: 0,0030000 | G119: 163.19 | H119: =ROUNDDOWN(F119*G119,2) -> 0.48
B120: COMPOSICAO | C120: 93244 | D120: ROLO COMPACTADOR VIBRATÓRIO PÉ DE CARNEIRO PARA SOLOS, POTÊNCIA 80 HP, PESO OPERACIONAL SEM/COM LASTRO 7,4 / 8,8 T, LARGURA DE TRABALHO 1,68 M | E120: CHI | F120: 0,0230000 | G120: 71.18 | H120: 1.63
B121: COMPOSICAO | C121: 5901 | D121: CAMINHÃO PIPA 10.000 L TRUCADO, PESO BRUTO TOTAL 23.000 KG, CARGA ÚTIL MÁXIMA 15.935 KG, DISTÂNCIA ENTRE EIXOS 4,8 M, POTÊNCIA 230 CV, INCLUSIVE TANQUE DE AÇO PARA TRANSPORTE DE ÁGUA | E121: CHP | F121: 0,0040000 | G121: 294,94 | H121: =ROUNDDOWN(F121*G121,2) -> 1.17
B122: COMPOSICAO | C122: 5903 | D122: CAMINHÃO PIPA 10.000 L TRUCADO, PESO BRUTO TOTAL 23.000 KG, CARGA ÚTIL MÁXIMA 15.935 KG, DISTÂNCIA ENTRE EIXOS 4,8 M, POTÊNCIA 230 CV, INCLUSIVE TANQUE DE AÇO PARA TRANSPORTE DE ÁGUA | E122: CHI | F122: 0,0220000 | G122: 72,55 | H122: 1.59
B123: COMPOSICAO | C123: 5932 | D123: MOTONIVELADORA POTÊNCIA BÁSICA LÍQUIDA (PRIMEIRA MARCHA) 125 HP, PESO BRUTO 13032 KG, LARGURA DA LÂMINA DE 3,7 M | E123: CHP | F123: 0,0080000 | G123: 262,71 | H123: 2.1
B124: COMPOSICAO | C124: 5934 | D124: MOTONIVELADORA POTÊNCIA BÁSICA LÍQUIDA (PRIMEIRA MARCHA) 125 HP, PESO BRUTO 13032 KG, LARGURA DA LÂMINA DE 3,7 M | E124: CHI | F124: 0,0190000 | G124: 109,40 | H124: 2.07
B125: COMPOSICAO | C125: 88316 | D125: SERVENTE COM ENCARGOS COMPLEMENTARES | E125: H | F125: 0,0260000 | G125: 19,76 | H125: 0.51
B126: PRODUÇÃO DA EQUIPE | E126: 1 | F126: CUSTO | H126: =SUM(H119:H125) -> 9.55
B127: TOTAL | H127: =H126/E126 -> 9.55
B128: BDI % | H128: =1+$M$1 -> 1.2149
B129: TOTAL DO SERVIÇO - R$ | H129: =ROUND(H127*H128,2) -> 11.6
A131: 11 | B131: CODEVASF | E131: COMPOSIÇÃO DE PREÇO UNITÁRIO | I131: =H146 -> 60.51 | J131: =H148 -> 73.513599
B132: OBRA: | C132: =$C$2 -> PAVIMENTAÇÃO EM BLOQUETE - RUAS DIVERSAS - CORONEL MURTA/ MG | G132: DATA: | H132: =$H$2 -> SETEMBRO/2023
B133: SERVIÇO: | C133: =VLOOKUP(A131,ORÇAMENTO!$A$10:$I$28,3) -> EXECUÇÃO DE PAVIMENTO EM PISO INTERTRAVADO, COM BLOCO SEXTAVADO DE CONCRETO DE 25 X 25 CM, ESPESSURA 8 CM | E133: SINAPI | F133: =VLOOKUP(A131,ORÇAMENTO!$A$10:$I$28,4) -> 92394 | G133: UNIDADE: | H133: =VLOOKUP(A131,ORÇAMENTO!$A$10:$I$28,5) -> M2
B135: TIPO ITEM | C135: CODIGO ITEM | D135: DESCRIÇÃO ITEM | E135: UNIDADE ITEM | F135: COEFICIENTE | G135: PRECO UNITARIO | H135: CUSTO TOTAL
B136: INSUMO | C136: COTAÇÃO | D136: AREIA MEDIA - POSTO JAZIDA/FORNECEDOR (RETIRADO NA JAZIDA, SEM TRANSPORTE) | E136: M3 | F136: 0,0568000 | G136: 45 | H136: =ROUNDDOWN(F136*G136,2) -> 2.55
B137: INSUMO | C137: COTAÇÃO | D137: BLOQUETE/PISO INTERTRAVADO DE CONCRETO - MODELO SEXTAVADO / HEXAGONAL, 25 CM X 25 CM, E = 8 CM, RESISTENCIA DE 35 MPA (NBR 9781), COR NATURAL | E137: M2 | F137: 1,0038000 | G137: 50 | H137: 50.19
B138: INSUMO | C138: 4741 | D138: PO DE PEDRA (POSTO PEDREIRA/FORNECEDOR, SEM FRETE) | E138: M3 | F138: 0,0066000 | G138: 111,12 | H138: 0.73
B139: COMPOSICAO | C139: 88260 | D139: CALCETEIRO COM ENCARGOS COMPLEMENTARES | E139: H | F139: 0,1683000 | G139: 21,06 | H139: 3.54
B140: COMPOSICAO | C140: 88316 | D140: SERVENTE COM ENCARGOS COMPLEMENTARES | E140: H | F140: 0,1683000 | G140: 19,76 | H140: 3.32
B141: COMPOSICAO | C141: 91277 | D141: PLACA VIBRATÓRIA REVERSÍVEL COM MOTOR 4 TEMPOS A GASOLINA, FORÇA CENTRÍFUGA DE 25 KN (2500 KGF), POTÊNCIA 5,5 CV | E141: CHP | F141: 0,0055000 | G141: 8,77 | H141: 0.04
B142: COMPOSICAO | C142: 91278 | D142: PLACA VIBRATÓRIA REVERSÍVEL COM MOTOR 4 TEMPOS A GASOLINA, FORÇA CENTRÍFUGA DE 25 KN (2500 KGF), POTÊNCIA 5,5 CV | E142: CHI | F142: 0,0787000 | G142: 0,52 | H142: 0.04
B143: COMPOSICAO | C143: 91283 | D143: CORTADORA DE PISO COM MOTOR 4 TEMPOS A GASOLINA, POTÊNCIA DE 13 HP, COM DISCO DE CORTE DIAMANTADO SEGMENTADO PARA CONCRETO, DIÂMETRO DE 350 MM, FURO DE 1" (14 X 1") | E143: CHP | F143: 0,0038000 | G143: 9,69 | H143: 0.03
B144: COMPOSICAO | C144: 91285 | D144: CORTADORA DE PISO COM MOTOR 4 TEMPOS A GASOLINA, POTÊNCIA DE 13 HP, COM DISCO DE CORTE DIAMANTADO SEGMENTADO PARA CONCRETO, DIÂMETRO DE 350 MM, FURO DE 1" (14 X 1") | E144: CHI | F144: 0,0804000 | G144: 0,92 | H144: 0.07
B145: PRODUÇÃO DA EQUIPE | E145: 1 | F145: CUSTO | H145: =SUM(H136:H144) -> 60.51
B146: TOTAL | H146: =H145/E145 -> 60.51 | I146: OK
B147: BDI % | H147: =1+$M$1 -> 1.2149
B148: TOTAL DO SERVIÇO - R$ | H148: =H146*H147 -> 73.513599
A150: 12 | B150: CODEVASF | E150: COMPOSIÇÃO DE PREÇO UNITÁRIO | I150: =H159 -> 1.24 | J150: =H161 -> 1.506476
B151: OBRA: | C151: =$C$2 -> PAVIMENTAÇÃO EM BLOQUETE - RUAS DIVERSAS - CORONEL MURTA/ MG | G151: DATA: | H151: =$H$2 -> SETEMBRO/2023
B152: SERVIÇO: | C152: =VLOOKUP(A150,ORÇAMENTO!$A$10:$I$28,3) -> TRANSPORTE COM CAMINHÃO BASCULANTE, EM VIA URBANA EM REVESTIMENTO PRIMÁRIO | E152: SINAPI | F152: =VLOOKUP(A150,ORÇAMENTO!$A$10:$I$28,4) -> 95426 | G152: UNIDADE: | H152: =VLOOKUP(A150,ORÇAMENTO!$A$10:$I$28,5) -> M3XKM
B154: TIPO ITEM | C154: CODIGO ITEM | D154: DESCRIÇÃO ITEM | E154: UNIDADE ITEM | F154: COEFICIENTE | G154: PRECO UNITARIO | H154: CUSTO TOTAL
B155: COMPOSICAO | C155: 89883a | D155: CAMINHÃO BASCULANTE 18 M3, COM CAVALO MECÂNICO DE CAPACIDADE MÁXIMA DE TRAÇÃO COMBINADO DE 45000 KG, POTÊNCIA 330 CV, INCLUSIVE SEMIREBOQUE COM CAÇAMBA METÁLICA | E155: CHP | F155: 0.003 | G155: 348,45 | H155: =ROUNDDOWN(F155*G155,2) -> 1.04
B156: COMPOSICAO | C156: 89884 | D156: CAMINHÃO BASCULANTE 18 M3, COM CAVALO MECÂNICO DE CAPACIDADE MÁXIMA DE TRAÇÃO COMBINADO DE 45000 KG, POTÊNCIA 330 CV, INCLUSIVE SEMIREBOQUE COM CAÇAMBA METÁLICA | E156: CHI | F156: 0,0022000 | G156: 93,65 | H156: 0.2
H157: =F157*G157 -> 0
B158: PRODUÇÃO DA EQUIPE | E158: 1 | F158: CUSTO | H158: =SUM(H155:H157) -> 1.24
B159: TOTAL | H159: =H158/E158 -> 1.24 | I159: OK
B160: BDI % | H160: =1+$M$1 -> 1.2149
B161: TOTAL DO SERVIÇO - R$ | H161: =H159*H160 -> 1.506476
A163: 13 | B163: CODEVASF | E163: COMPOSIÇÃO DE PREÇO UNITÁRIO | I163: =H172 -> 0.73 | J163: =H174 -> 0.886877
B164: OBRA: | C164: =$C$2 -> PAVIMENTAÇÃO EM BLOQUETE - RUAS DIVERSAS - CORONEL MURTA/ MG | G164: DATA: | H164: =$H$2 -> SETEMBRO/2023
B165: SERVIÇO: | C165: =VLOOKUP(A163,ORÇAMENTO!$A$10:$I$28,3) -> TRANSPORTE COM CAMINHÃO BASCULANTE, EM VIA URBANA PAVIMENTADA | E165: SINAPI | F165: =VLOOKUP(A163,ORÇAMENTO!$A$10:$I$28,4) -> 95427 | G165: UNIDADE: | H165: =VLOOKUP(A163,ORÇAMENTO!$A$10:$I$28,5) -> M3XKM
B167: TIPO ITEM | C167: CODIGO ITEM | D167: DESCRIÇÃO ITEM | E167: UNIDADE ITEM | F167: COEFICIENTE | G167: PRECO UNITARIO | H167: CUSTO TOTAL
B168: COMPOSICAO | C168: 89883 | D168: CAMINHÃO BASCULANTE 18 M3, COM CAVALO MECÂNICO DE CAPACIDADE MÁXIMA DE TRAÇÃO COMBINADO DE 45000 KG, POTÊNCIA 330 CV, INCLUSIVE SEMIREBOQUE COM CAÇAMBA METÁLICA - CHP DIURNO. AF_12/2014 | E168: CHP | F168: 0,0019000 | G168: 348,45 | H168: =ROUNDDOWN(F168*G168,2) -> 0.66
B169: COMPOSICAO | C169: 89884 | D169: CAMINHÃO BASCULANTE 18 M3, COM CAVALO MECÂNICO DE CAPACIDADE MÁXIMA DE TRAÇÃO COMBINADO DE 45000 KG, POTÊNCIA 330 CV, INCLUSIVE SEMIREBOQUE COM CAÇAMBA METÁLICA - CHI DIURNO. AF_12/2014 | E169: CHI | F169: 0,0008000 | G169: 93,65 | H169: 0.07
H170: =F170*G170 -> 0
B171: PRODUÇÃO DA EQUIPE | E171: 1 | F171: CUSTO | H171: =SUM(H168:H170) -> 0.73
B172: TOTAL | H172: =H171/E171 -> 0.73 | I172: OK
B173: BDI % | H173: =1+$M$1 -> 1.2149
B174: TOTAL DO SERVIÇO - R$ | H174: =H172*H173 -> 0.886877
A176: 14 | B176: CODEVASF | E176: COMPOSIÇÃO DE PREÇO UNITÁRIO | I176: =H185 -> 0.43 | J176: =H187 -> 0.522407
B177: OBRA: | C177: =$C$2 -> PAVIMENTAÇÃO EM BLOQUETE - RUAS DIVERSAS - CORONEL MURTA/ MG | G177: DATA: | H177: =$H$2 -> SETEMBRO/2023
B178: SERVIÇO: | C178: =VLOOKUP(A176,ORÇAMENTO!$A$10:$I$28,3) -> TRANSPORTE COM CAMINHÃO CARROCERIA, EM VIA URBANA PAVIMENTADA | E178: SINAPI | F178: =VLOOKUP(A176,ORÇAMENTO!$A$10:$I$28,4) -> 100948 | G178: UNIDADE: | H178: =VLOOKUP(A176,ORÇAMENTO!$A$10:$I$28,5) -> TXKM
B180: TIPO ITEM | C180: CODIGO ITEM | D180: DESCRIÇÃO ITEM | E180: UNIDADE ITEM | F180: COEFICIENTE | G180: PRECO UNITARIO | H180: CUSTO TOTAL
B181: COMPOSICAO | C181: 5824a | D181: CAMINHÃO TOCO, PBT 16.000 KG, CARGA ÚTIL MÁX. 10.685 KG, DIST. ENTRE EIXOS 4,8 M, POTÊNCIA 189 CV, INCLUSIVE CARROCERIA FIXA ABERTA DE MADEIRA P/ TRANSPORTE GERAL DE CARGA SECA | E181: CHP | F181: 0.0017 | G181: 202,74 | H181: =ROUNDDOWN(F181*G181,2) -> 0.34
B182: COMPOSICAO | C182: 5826 | D182: CAMINHÃO TOCO, PBT 16.000 KG, CARGA ÚTIL MÁX. 10.685 KG, DIST. ENTRE EIXOS 4,8 M, POTÊNCIA 189 CV, INCLUSIVE CARROCERIA FIXA ABERTA DE MADEIRA P/ TRANSPORTE GERAL DE CARGA SECA | E182: CHI | F182: 0,0016000 | G182: 60,95 | H182: 0.09
H183: =F183*G183 -> 0
B184: PRODUÇÃO DA EQUIPE | E184: 1 | F184: CUSTO | H184: =SUM(H181:H183) -> 0.43
B185: TOTAL | H185: =H184/E184 -> 0.43 | I185: OK
B186: BDI % | H186: =1+$M$1 -> 1.2149
B187: TOTAL DO SERVIÇO - R$ | H187: =H185*H186 -> 0.522407
A189: 15 | B189: CODEVASF | E189: COMPOSIÇÃO DE PREÇO UNITÁRIO | I189: =H201 -> 45.31 | J189: =H203 -> 55.047119
B190: OBRA: | C190: =$C$2 -> PAVIMENTAÇÃO EM BLOQUETE - RUAS DIVERSAS - CORONEL MURTA/ MG | G190: DATA: | H190: =$H$2 -> SETEMBRO/2023
B191: SERVIÇO: | C191: =VLOOKUP(A189,ORÇAMENTO!$A$10:$I$28,3) -> ASSENTAMENTO DE GUIA (MEIO-FIO) EM TRECHO RETO, CONFECCIONADA EM CONCRETO PRÉ-FABRICADO, DIMENSÕES 100X15X13X30 CM (COMPRIMENTO X BASE INFERIOR X BASE SUPERIOR X ALTURA) | E191: SINAPI | F191: =VLOOKUP(A189,ORÇAMENTO!$A$10:$I$28,4) -> 94273a | G191: UNIDADE: | H191: =VLOOKUP(A189,ORÇAMENTO!$A$10:$I$28,5) -> M
B193: TIPO ITEM | C193: CODIGO ITEM | D193: DESCRIÇÃO ITEM | E193: UNIDADE ITEM | F193: COEFICIENTE | G193: PRECO UNITARIO | H193: CUSTO TOTAL
B194: INSUMO | C194: COTAÇÃO | D194: AREIA MEDIA - POSTO JAZIDA/FORNECEDOR (RETIRADO NA JAZIDA, SEM TRANSPORTE) | E194: M3 | F194: 0,0070000 | G194: 45 | H194: =ROUNDDOWN(F194*G194,2) -> 0.31
B195: INSUMO | C195: COTAÇÃO | D195: MEIO-FIO OU GUIA DE CONCRETO, PRE-MOLDADO, COMP 1 M, *30 X 12/15* CM (H X L1/L2) | E195: M | F195: 1,0050000 | G195: =20/0.8 -> 25 | H195: 25.12
B196: COMPOSICAO | C196: 88309 | D196: PEDREIRO COM ENCARGOS COMPLEMENTARES | E196: H | F196: 0,3940000 | G196: 27,45 | H196: 10.81
B197: COMPOSICAO | C197: 88316 | D197: SERVENTE COM ENCARGOS COMPLEMENTARES | E197: H | F197: 0,3940000 | G197: 19,76 | H197: 7.78
B198: COMPOSICAO | C198: 88629 | D198: ARGAMASSA TRAÇO 1:3 (EM VOLUME DE CIMENTO E AREIA MÉDIA ÚMIDA), PREPARO MANUAL. AF_08/2019 | E198: M3 | F198: 0,0020000 | G198: 645,53 | H198: 1.29
B200: PRODUÇÃO DA EQUIPE | E200: 1 | F200: CUSTO | H200: =SUM(H194:H198) -> 45.31
B201: TOTAL | H201: =H200/E200 -> 45.31 | I201: OK
B202: BDI % | H202: =1+$M$1 -> 1.2149
B203: TOTAL DO SERVIÇO - R$ | H203: =H201*H202 -> 55.047119
A205: 16 | B205: CODEVASF | E205: COMPOSIÇÃO DE PREÇO UNITÁRIO | I205: =H218 -> 34.31 | J205: =H220 -> 41.683219
B206: OBRA: | C206: =$C$2 -> PAVIMENTAÇÃO EM BLOQUETE - RUAS DIVERSAS - CORONEL MURTA/ MG | G206: DATA: | H206: =$H$2 -> SETEMBRO/2023
B207: SERVIÇO: | C207: =VLOOKUP(A205,ORÇAMENTO!$A$10:$I$28,3) -> EXECUÇÃO DE SARJETA DE CONCRETO USINADO, MOLDADA IN LOCO EM TRECHO RETO, 30 CM BASE X 5 CM ALTURA | E207: SINAPI | F207: =VLOOKUP(A205,ORÇAMENTO!$A$10:$I$28,4) -> 94287a | G207: UNIDADE: | H207: =VLOOKUP(A205,ORÇAMENTO!$A$10:$I$28,5) -> M
B209: TIPO ITEM | C209: CODIGO ITEM | D209: DESCRIÇÃO ITEM | E209: UNIDADE ITEM | F209: COEFICIENTE | G209: PRECO UNITARIO | H209: CUSTO TOTAL
B210: INSUMO | C210: COTACAO | D210: AREIA MEDIA - POSTO JAZIDA/FORNECEDOR (RETIRADO NA JAZIDA, SEM TRANSPORTE) | E210: M3 | F210: 0,0100000 | G210: 45 | H210: =ROUNDDOWN(F210*G210,2) -> 0.45
B211: INSUMO | C211: 4517 | D211: SARRAFO *2,5 X 7,5* CM EM PINUS, MISTA OU EQUIVALENTE DA REGIAO - BRUTA | E211: M | F211: 0,2000000 | G211: 3,04 | H211: 0.6
B212: INSUMO | C212: 6189 | D212: TABUA NAO APARELHADA *2,5 X 30* CM, EM MACARANDUBA/MASSARANDUBA, ANGELIM OU EQUIVALENTE DA REGIAO - BRUTA | E212: M | F212: 0,0830000 | G212: 43,21 | H212: 3.58
B213: INSUMO | C213: 34492a | D213: CONCRETO USINADO BOMBEAVEL, CLASSE DE RESISTENCIA C20, COM BRITA 0 E 1, SLUMP = 100 +/- 20 MM, EXCLUI SERVICO DE BOMBEAMENTO (NBR 8953) | E213: M3 | F213: =(0.3*0.05) -> 0.015 | G213: 550,00 | H213: 8.25
B214: COMPOSICAO | C214: 88309 | D214: PEDREIRO COM ENCARGOS COMPLEMENTARES | E214: H | F214: 0,4540000 | G214: 27,45 | H214: 12.46
B215: COMPOSICAO | C215: 88316 | D215: SERVENTE COM ENCARGOS COMPLEMENTARES | E215: H | F215: 0,4540000 | G215: 19,76 | H215: 8.97
B217: PRODUÇÃO DA EQUIPE | E217: 1 | F217: CUSTO | H217: =SUM(H210:H215) -> 34.31
B218: TOTAL | H218: =H217/E217 -> 34.31 | I218: OK
B219: BDI % | H219: =1+$M$1 -> 1.2149
B220: TOTAL DO SERVIÇO - R$ | H220: =H218*H219 -> 41.683219
A222: 17 | B222: CODEVASF | E222: COMPOSIÇÃO DE PREÇO UNITÁRIO | I222: =H235 -> 482.58 | J222: =H237 -> 586.29
B223: OBRA: | C223: =$C$2 -> PAVIMENTAÇÃO EM BLOQUETE - RUAS DIVERSAS - CORONEL MURTA/ MG | G223: DATA: | H223: =$H$2 -> SETEMBRO/2023
B224: SERVIÇO: | C224: =VLOOKUP(A222,ORÇAMENTO!$A$10:$I$30,3) -> FORNECIMENTO E INSTALAÇÃO DE PLACA DE SINALIZAÇÃO VIÁRIA - REGULAMENTAÇÃO (PARE) | E224: SINAPI | F224: =VLOOKUP(A222,ORÇAMENTO!$A$10:$I$30,4) -> CPU.4 | G224: UNIDADE: | H224: =VLOOKUP(A222,ORÇAMENTO!$A$10:$I$30,5) -> UN.
B226: TIPO ITEM | C226: CODIGO ITEM | D226: DESCRIÇÃO ITEM | E226: UNIDADE ITEM | F226: COEFICIENTE | G226: PRECO UNITARIO | H226: CUSTO TOTAL
B227: COMPOSICAO | C227: 94962 | D227: CONCRETO MAGRO PARA LASTRO, TRAÇO 1:4,5:4,5 (EM MASSA SECA DE CIMENTO/ AREIA/ BRITA 1) | E227: M3 | F227: 0.024 | G227: 397.46 | H227: =ROUNDDOWN(F227*G227,2) -> 9.53
B228: COMPOSICAO | C228: 93358 | D228: ESCAVAÇÃO MANUAL DE VALA COM PROFUNDIDADE MENOR OU IGUAL A 1,30 M | E228: M3 | F228: 0.024 | G228: 78.17 | H228: 1.87
B229: COMPOSICAO | C229: 88309 | D229: PEDREIRO COM ENCARGOS COMPLEMENTARES | E229: H | F229: 0.2 | G229: 27.45 | H229: 5.49
B230: COMPOSICAO | C230: 88316 | D230: SERVENTE COM ENCARGOS COMPLEMENTARES | E230: H | F230: 1 | G230: 19.76 | H230: 19.76
B231: COMPOSICAO | C231: 103670 | D231: LANÇAMENTO COM USO DE BALDES, ADENSAMENTO E ACABAMENTO DE CONCRETO EM ESTRUTURAS | E231: M3 | F231: 0.024 | G231: 281.66 | H231: 6.75
B232: INSUMO | C232: 34723 | D232: PLACA DE SINALIZACAO EM CHAPA DE ACO NUM 16 COM PINTURA REFLETIVA | E232: M2 | F232: =4*0.3*0.25 -> 0.3 | G232: 577.5 | H232: 173.25
B233: INSUMO | C233: 21013 | D233: TUBO AÇO GALVANIZADO COM COSTURA, CLASSE LEVE, DN 50 MM ( 2")E = 3,00 MM, *4,40* KG/M | E233: M | F233: 3.5 | G233: 75.98 | H233: 265.93
... 34 more rows

Sheet BDI SERV
B1: DETALHAMENTO DO BDI - SERVIÇOS
B4: Item | C4: Descrição dos Serviços | D4: % | E4: %
D5: PV | E5: CD
B7: 1 | C7: ADMINISTRAÇÃO CENTRAL | E7: 4.01
B8: 1.1 | C8: ESCRITÓRIO CENTRAL
B9: 1.2 | C9: VIAGENS
B10: 1.3 | C10: OUTROS
B12: 2 | C12: IMPOSTOS E TAXAS | D12: =SUM(D13:D15) -> 5.65 | E12: =SUM(E13:E15) -> 7.06
B13: 2.1 | C13: ISS (*) | D13: =5*0.4 -> 2 | E13: =ROUND(D13*1.2515,2) -> 2.5
B14: 2.2 | C14: PIS | D14: 0.65 | E14: 0.81
B15: 2.3 | C15: Cofins | D15: 3 | E15: 3.75
B17: 3 | C17: TAXA DE RISCO | E17: =SUM(E18:E21) -> 0.96
B18: 3.1 | C18: SEGURO | E18: 0.2
B19: 3.2 | C19: RISCO | E19: 0.56
B20: 3.3 | C20: GARANTIA | E20: 0.2
B22: 4 | C22: DESPESAS FINANCEIRAS | E22: 1.11
B24: 5 | C24: LUCRO | E24: 8
C26: BDI - CALCULADO | E26: =ROUND((((1+(E7+E17)/100)*(1+E22/100)*(1+E24/100)/(1-D12/100)-1)*100),2) -> 21.49
A28: BDI = ((1+((AC+S+R+G)/100))x(1+DF/100)x(1+L/100)/(1-I/100)-1)*100
B30: BDI (CALCULADO): | D30: =ROUND((((1+((E7+E17)/100))*(1+E22/100)*(1+E24/100))/(1-D12/100)-1)*100,2) -> 21.49 | E30: %
A32: (*) ISS CONFORME LEI COMPLEMENTAR Nº 067/2017 E DECLARAÇÃO FORNECIDA PELA PREFEITURA QUANT. ESTIMADA DE MATERIAIS = 60%
A36: BDI EM CONFORMIDADE COM OS ACÓRDÃOS Nº 2369/2011 e ACÓRDÃO Nº 2.622/2013 - TCU - PLENÁRIO

Sheet CRONOGRAMA
B1: CRONOGRAMA FÍSICO-FINANCEIRO
B2: OBRA: | C2: =ORÇAMENTO!C5 -> PAVIMENTAÇÃO EM BLOQUETE - RUAS DIVERSAS - CORONEL MURTA/ MG | F2: VALOR: | G2: =ORÇAMENTO!I32 -> 1811747.14
F3: PRAZO: | G3: 240 DIAS
B5: ITEM | C5: ETAPAS/DESCRIÇAO | D5: FISICO/ FINANCEIRO | E5: TOTAL ETAPAS | F5: MÊS 1 | G5: MÊS 2 | H5: MÊS 3 | I5: MÊS 4 | J5: MÊS 5 | K5: MÊS 6 | L5: MÊS 7 | M5: MÊS 8 | N5: TOTAL
A6: A | B6: =VLOOKUP(A6,ORÇAMENTO!$A$9:$I$32,2) -> 1 | C6: =VLOOKUP(A6,ORÇAMENTO!$A$9:$I$32,3) -> SERVIÇOS PRELIMINARES | D6: FISICO | E6: =ROUND(E7/$G$2,4) -> 0.0595 | F6: 0.2 | G6: 0.125 | H6: 0.15 | I6: 0.1 | J6: 0.1 | K6: 0.1 | L6: 0.075 | M6: 0.15 | N6: =SUM(F6:M6) -> 1
D7: FINANCEIRO | E7: =ORÇAMENTO!I9 -> 107819.41 | F7: =ROUND($E$7*F6,2) -> 21563.88 | G7: 13477.43 | H7: 16172.91 | I7: 10781.94 | J7: 10781.94 | K7: 10781.94 | L7: 8086.46 | M7: 16172.91 | N7: =SUM(F7:M7)+0.01 -> 107819.42
A8: B | B8: =VLOOKUP(A8,ORÇAMENTO!$A$9:$I$32,2) -> 2 | C8: =VLOOKUP(A8,ORÇAMENTO!$A$9:$I$32,3) -> PAVIMENTAÇÃO | D8: FISICO | E8: =ROUND(E9/$G$2,4) -> 0.6096 | F8: 0.15 | G8: 0.1 | H8: 0.15 | I8: 0.175 | J8: 0.175 | K8: 0.1 | L8: 0.075 | M8: 0.075 | N8: =SUM(F8:M8) -> 1
D9: FINANCEIRO | E9: =ORÇAMENTO!I15 -> 1104395.32 | F9: =ROUND($E$9*F8,2) -> 165659.3 | G9: 110439.53 | H9: 165659.3 | I9: 193269.18 | J9: 193269.18 | K9: 110439.53 | L9: 82829.65 | M9: 82829.65 | N9: =SUM(F9:M9) -> 1104395.32
A10: C | B10: =VLOOKUP(A10,ORÇAMENTO!$A$9:$I$32,2) -> 3 | C10: =VLOOKUP(A10,ORÇAMENTO!$A$9:$I$32,3) -> TRANSPORTE DE MATERIAIS | D10: FISICO | E10: =ROUND(E11/$G$2,4) -> 0.0909 | F10: 0.15 | G10: 0.1 | H10: 0.15 | I10: 0.175 | J10: 0.175 | K10: 0.1 | L10: 0.075 | M10: 0.075 | N10: =SUM(F10:M10) -> 1
D11: FINANCEIRO | E11: =ORÇAMENTO!I22 -> 164631.09 | F11: =ROUND($E$11*F10,2) -> 24694.66 | G11: =ROUND($E$11*G10,2) -> 16463.11 | H11: 24694.66 | I11: 28810.44 | J11: 28810.44 | K11: 16463.11 | L11: 12347.33 | M11: 12347.33 | N11: =SUM(F11:M11)+0.01 -> 164631.09
A12: D | B12: =VLOOKUP(A12,ORÇAMENTO!$A$9:$I$32,2) -> 4 | C12: =VLOOKUP(A12,ORÇAMENTO!$A$9:$I$32,3) -> OBRAS COMPLEMENTARES | D12: FISICO | E12: =ROUND(E13/$G$2,4) -> 0.24 | H12: 0.1 | I12: 0.2 | J12: 0.25 | K12: 0.2 | L12: 0.15 | M12: 0.1 | N12: =SUM(F12:M12) -> 1
D13: FINANCEIRO | E13: =ORÇAMENTO!I26 -> 434901.32 | F13: =ROUND($E$13*F12,2) -> 0 | G13: =ROUND($E$13*G12,2) -> 0 | H13: 43490.13 | I13: 86980.26 | J13: 108725.33 | K13: 86980.26 | L13: 65235.2 | M13: 43490.13 | N13: =SUM(F13:M13) -> 434901.31
B14: TOTAL | D14: FISICO | E14: =SUM(F14:M14) -> 0.999999989 | F14: =F15/E15 -> 0.116968773 | G14: =G15/$E$15 -> 0.0774832574 | H14: 0.1379977341 | I14: 0.1765377811 | J14: 0.1885400465 | K14: 0.1240045231 | L14: 0.09300339781 | M14: 0.08546447602 | N14: =SUM(F14:M14) -> 0.999999989
D15: FINANCEIRO | E15: =E11+E9+E7+E13 -> 1811747.14 | F15: 211917.84 | G15: 140380.07 | H15: 250017 | I15: 319841.82 | J15: 341586.89 | K15: 224664.84 | L15: 168498.64 | M15: 154840.02 | N15: =SUM(F15:M15)+0.02 -> 1811747.14
B17: OBSERVAÇÕES:
